Cogmind - Beta 16 @@@ ROGUE MODE // 2025.10.31 @ 02:02:00 Player: Not_Jesus8 Result: Destroyed by Enhanced Grunt with Neutron Cannon Performance ------------- Evolutions (4) 2000 Regions Visited (14) 2800 Robots Destroyed (18) 90 Value Destroyed (273) 273 Prototype IDs (38) 760 Alien Tech Used (0) 0 Bonus (600) 600 TOTAL SCORE: 6523 Bonus ------- Aligned with FarCom 300 Met Data Miner 300 Cogmind --------- Core Integrity 0/850 Matter 290/300 Energy 75/100 System Corruption 0% Temperature Cool (0) Movement Core (50) Location -6/Data Miner Parts ------- > --- POWER (1) -------- (None) > --- PROPULSION (2) --- (None) > --- UTILITY (10) ----- Advanced Visual Processing Unit Advanced Visual Processing Unit Signal Interpreter Armor Integrity Analyzer Hacking Suite > --- WEAPON (2) ------- (None) > --- INVENTORY (5) ---- Advanced Weight Redist. System Improved Datajack Mace Peak State ------------ > --- POWER ------------ (None) > --- PROPULSION ------- Nuclear Pulse Thruster Nuclear Pulse Thruster > --- UTILITY ---------- Advanced Visual Processing Unit Advanced Visual Processing Unit Signal Interpreter Seismic Detector Armor Integrity Analyzer Armor Integrity Analyzer Hacking Suite > --- WEAPON ----------- Improved Datajack > --- INVENTORY -------- Advanced Weight Redist. System Mace [Rating: 32] Favorites ----------- Power None Propulsion Nuclear Pulse Thruster Hover Unit Gravmag System Flight Unit Nuclear Pulse Thruster Utility Advanced Visual Processing Unit Device Seismic Detector Processor Advanced Visual Processing Unit Hackware Hacking Suite Weapon Flail Special Weapon Mining Laser Impact Weapon Flail Slashing Weapon Chainsword Special Melee Weapon Improved Datajack Build | -11 -10 -10 -9 -9 -9 -8 -8 -7 -7 -7 -6 -6 -6 -6 ------- Run | Yrd Mat Min Mat Min Exi Min Mat Fac Low Low Fac Low Low Dat Slots Evolved 8 | . . . 2 . . . 2 2 . . 2 . . . Power . | . . . . . . . . . . . . . . . Propulsion . | . . . . . . . . . . . . . . . Utility 8 | . . . 2 . . . 2 2 . . 2 . . . Weapon . | . . . . . . . . . . . . . . . Parts Attached 19 | . 1 . 1 1 2 . 3 1 4 1 4 . . 1 Power . | . . . . . . . . . . . . . . . Engine . | . . . . . . . . . . . . . . . Core . | . . . . . . . . . . . . . . . Reactor . | . . . . . . . . . . . . . . . Propulsion 3 | . . . . . . . . . 1 . 2 . . . Treads . | . . . . . . . . . . . . . . . Leg . | . . . . . . . . . . . . . . . Wheel . | . . . . . . . . . . . . . . . Hover 1 | . . . . . . . . . 1 . . . . . Flight 2 | . . . . . . . . . . . 2 . . . Utility 10 | . . . 1 1 1 . 2 . 2 1 2 . . . Device 3 | . . . . . . . 2 . . . 1 . . . Storage . | . . . . . . . . . . . . . . . Processor 6 | . . . 1 1 1 . . . 2 1 . . . . Hackware 1 | . . . . . . . . . . . 1 . . . Protection . | . . . . . . . . . . . . . . . Artifact . | . . . . . . . . . . . . . . . Weapon 6 | . 1 . . . 1 . 1 1 1 . . . . 1 Energy Gun . | . . . . . . . . . . . . . . . Energy Cannon . | . . . . . . . . . . . . . . . Ballistic Gun . | . . . . . . . . . . . . . . . Ballistic Cannon . | . . . . . . . . . . . . . . . Launcher . | . . . . . . . . . . . . . . . Special Weapon 1 | . 1 . . . . . . . . . . . . . Impact Weapon 3 | . . . . . 1 . 1 . . . . . . 1 Slashing Weapon 1 | . . . . . . . . . 1 . . . . . Piercing Weapon . | . . . . . . . . . . . . . . . Special Melee Weapon 1 | . . . . . . . . 1 . . . . . . Unidentified Prototypes . | . . . . . . . . . . . . . . . Parts Lost 9 | . . . . . . . 2 . 1 1 1 . . 4 Power . | . . . . . . . . . . . . . . . Propulsion 3 | . . . . . . . . . . 1 . . . 2 Utility 4 | . . . . . . . 1 . . . 1 . . 2 Weapon 2 | . . . . . . . 1 . 1 . . . . . Highest Loss Streak 4 | . . . . . . . 2 . 1 1 1 . . 4 To Critical Strikes . | . . . . . . . . . . . . . . . Average Backups 3 | . . . 2 4 4 5 4 4 5 5 4 2 2 2 Power 1 | . . . . . 2 3 3 3 3 3 2 . . . Propulsion . | . . . . . . . . . . . . . . . Utility . | . . . 2 3 1 . . . . . . 1 1 1 Weapon . | . . . . 1 1 1 . 1 . . . . . . Tool/Special . | . . . . . . . . . . . . . . . Unused Backups 9 | . . . . . 2 . 2 . . . 4 . . 1 Power 3 | . . . . . . . . . . . 3 . . . Propulsion . | . . . . . . . . . . . . . . . Utility 3 | . . . . . 2 . . . . . . . . 1 Weapon 1 | . . . . . . . 1 . . . . . . . Tool/Special 2 | . . . . . . . 1 . . . 1 . . . Average Slot Usage (%) 39 | . 3 14 20 26 35 44 43 24 41 46 44 60 60 58 Flight 1 | . . . . . . . . . . . . 13 13 11 Device 2 | . . . . . . . 7 . . . 2 6 6 5 Processor 27 | . . . 9 19 26 33 27 23 31 40 35 33 33 33 Hackware 1 | . . . . . . . . . . . 4 6 6 6 Special Weapon 1 | . 3 14 11 7 . . . . . . . . . . Impact Weapon 2 | . . . . . 9 11 8 . . . . . . . Peak Build Rating 32 | . 1 1 4 6 12 12 15 12 24 24 29 29 32 32 Average Rating 15 | . . 1 3 5 9 12 13 9 18 20 20 29 29 28 On Entrance 12 | . . 1 1 4 5 12 12 8 12 20 20 29 29 29 Avg Prop Armor Cover (%) . | . . . . . . . . . . . . . . . Naked Turns 28 | . 28 . . . . . . . . . . . . . Heaviest Build 3 | . 1 1 1 1 2 2 3 1 3 . 1 1 2 3 Greatest Support 12 | 3 3 3 3 3 3 3 3 3 9 9 12 12 12 12 Greatest Overweight (x) . | . . . . . . . . . . . . . . . Average Overweight (x) . | . . . . . . . . . . . . . . . Largest Inventory Capacity 5 | 5 5 5 5 5 5 5 5 5 5 5 5 5 5 5 Average Capacity 5 | 5 5 5 5 5 5 5 5 5 5 5 5 5 5 5 Most Carried 5 | . . . 3 5 5 5 5 5 5 5 5 2 3 3 Average Carried 3 | . . . 2 4 4 5 4 4 4 5 4 2 2 2 Final Capacity 5 | 5 5 5 5 5 5 5 5 5 5 5 5 5 5 5 Final Carried 5 | . . . 3 5 5 5 4 5 5 5 2 2 3 3 Class Distribution -------------------- 79% | Mutant 20% | Scout Dominant Class ---------------- Mutant | -10/Materials Mutant | -10/Mines Mutant | -9/Materials Mutant | -9/Mines Mutant | -9/Exiles Mutant | -8/Mines Scout | -8/Materials Mutant | -7/Factory Mutant | -7/Lower Caves Mutant | -7/Lower Caves Mutant | -6/Factory Mutant | -6/Lower Caves Mutant | -6/Lower Caves Mutant | -6/Data Miner Resources | -11 -10 -10 -9 -9 -9 -8 -8 -7 -7 -7 -6 -6 -6 -6 ----------- Run | Yrd Mat Min Mat Min Exi Min Mat Fac Low Low Fac Low Low Dat Matter Collected 375 | 49 . 61 . . . . 115 . 105 10 . . 35 . Remotely . | . . . . . . . . . . . . . . . Salvage Created 377 | . 7 . . . . . 229 . 141 . . . . . Parts 27 | . 6 . . . . . 14 . 7 . . . . . Haulers Intercepted 2 | . . . . . . . 2 . . . . . . . Recyclers Shooed . | . . . . . . . . . . . . . . . Parts Field Recycled . | . . . . . . . . . . . . . . . Retrieved Matter . | . . . . . . . . . . . . . . . Parts Self-Destructed 6 | . . . . . . . . . 6 . . . . . Prevented . | . . . . . . . . . . . . . . . Parts Restored . | . . . . . . . . . . . . . . . Kills | -11 -10 -10 -9 -9 -9 -8 -8 -7 -7 -7 -6 -6 -6 -6 ------- Run | Yrd Mat Min Mat Min Exi Min Mat Fac Low Low Fac Low Low Dat Combat Hostiles Destroyed 11 | . 3 . . . . . 3 . 5 . . . . . Melee 7 | . . . . . . . 2 . 5 . . . . . AOE 3 | . 3 . . . . . . . . . . . . . Classes Destroyed 5 | . 1 . . . . . 3 . 1 . . . . . Worker 1 | . . . . . . . 1 . . . . . . . Builder 4 | . . . . . . . 4 . . . . . . . Hauler 2 | . . . . . . . 2 . . . . . . . Swarmer 10 | . 3 . . . . . 3 . 4 . . . . . Programmer 1 | . . . . . . . . . 1 . . . . . Best Kill Streak 5 | . 3 . . . . . 5 . 4 . . . . . Combat Bots Only 4 | . 3 . . . . . 3 . 4 . . . . . Max Kills in Single Turn 3 | . 3 . . . . . 1 . 1 . . . . . Gunslinging . | . . . . . . . . . . . . . . . Exploded 3 | . 3 . . . . . . . . . . . . . Melee 1 | . . . . . . . 1 . 1 . . . . . Uniques/NPCs Destroyed . | . . . . . . . . . . . . . . . Combat | -11 -10 -10 -9 -9 -9 -8 -8 -7 -7 -7 -6 -6 -6 -6 -------- Run | Yrd Mat Min Mat Min Exi Min Mat Fac Low Low Fac Low Low Dat Hostile Shots Fired 229 | . 5 . 1 6 . . 71 . 73 7 45 3 2 16 Missed 95 | . 2 . . 1 . . 30 . 31 2 23 2 1 3 Hits 134 | . 3 . 1 5 . . 41 . 42 5 22 1 1 13 Melee 7 | . . . . . . . 6 . . . 1 . . . Projectile 127 | . 3 . 1 5 . . 35 . 42 5 21 1 1 13 AOE 2 | . . . . . . . 2 . . . . . . . Critical Strikes 2 | . . . . . . . . . 1 . 1 . . . Damage Taken 2394 | . 30 . 12 43 . . 492 . 680 109 390 20 20 598 Core 2004 | . 30 . . 43 . . 360 . 625 63 328 20 20 515 Absorbed by Shields . | . . . . . . . . . . . . . . . Core Remaining (%) 62 | 100 . 88 . . . 89 34 . . 1 . . . . Volleys Fired 3 | . . . 2 1 . . . . . . . . . . Largest 1 | . . . 1 1 . . . . . . . . . . Hottest 100 | . . . 100 100 . . . . . . . . . . Shots Fired 3 | . . . 2 1 . . . . . . . . . . Gun . | . . . . . . . . . . . . . . . Cannon . | . . . . . . . . . . . . . . . Launcher . | . . . . . . . . . . . . . . . Special 3 | . . . 2 1 . . . . . . . . . . Kinetic . | . . . . . . . . . . . . . . . Thermal 3 | . . . 2 1 . . . . . . . . . . Explosive . | . . . . . . . . . . . . . . . Electromagnetic . | . . . . . . . . . . . . . . . Robot Hit Streak . | . . . . . . . . . . . . . . . Robot Miss Streak 1 | . . . . 1 . . . . . . . . . . Penetration Max . | . . . . . . . . . . . . . . . Secondary Targets . | . . . . . . . . . . . . . . . Shots Hit Robots 24 | . . . . . . . 10 . 11 . . . 1 2 Core Hits 11 | . 3 . . . . . 3 . 5 . . . . . Critical Kills 2 | . . . . . . . 2 . . . . . . . Critical Parts Destroyed 2 | . . . . . . . 2 . . . . . . . Critical Strikes 4 | . . . . . . . 4 . . . . . . . Smash 4 | . . . . . . . 4 . . . . . . . Melee Attacks 38 | . . . . . . . 23 . 12 . . . 1 2 Impact 24 | . . . . . . . 23 . . . . . . 1 Slashing 11 | . . . . . . . . . 11 . . . . . Piercing . | . . . . . . . . . . . . . . . Sneak Attacks 10 | . . . . . . . 6 . 1 . . . 1 2 Combat Hostiles 1 | . . . . . . . . . 1 . . . . . Follow-up Attacks . | . . . . . . . . . . . . . . . Damage Inflicted 1475 | . 293 . . . . . 713 . 394 9 . . . 66 Guns . | . . . . . . . . . . . . . . . Cannons . | . . . . . . . . . . . . . . . Explosions 293 | . 293 . . . . . . . . . . . . . Melee 1173 | . . . . . . . 713 . 394 . . . . 66 Ramming 9 | . . . . . . . . . . 9 . . . . Kinetic . | . . . . . . . . . . . . . . . Thermal . | . . . . . . . . . . . . . . . Explosive 293 | . 293 . . . . . . . . . . . . . Electromagnetic . | . . . . . . . . . . . . . . . Impact 779 | . . . . . . . 713 . . . . . . 66 Slashing 394 | . . . . . . . . . 394 . . . . . Piercing . | . . . . . . . . . . . . . . . Highest Corruption 2 | . 2 2 . . . . . . 1 1 . . . . Average Corruption 1 | . 2 2 . . . . . . 1 1 . . . . Corruption Purged . | . . . . . . . . . . . . . . . Corruption Blocked . | . . . . . . . . . . . . . . . Effects 2 | . . 2 . . . . . . . . . . . . Message Errors 1 | . . 1 . . . . . . . . . . . . Energy Discharges 1 | . . 1 . . . . . . . . . . . . Overload Shots . | . . . . . . . . . . . . . . . Overflow Damage 359 | . . . . . . . 337 . 22 . . . . . Projectiles . | . . . . . . . . . . . . . . . Explosions . | . . . . . . . . . . . . . . . Melee 359 | . . . . . . . 337 . 22 . . . . . Knockbacks 4 | . . . . . . . 2 . . 1 . . . 1 Impact 4 | . . . . . . . 2 . . 1 . . . 1 Kinetic . | . . . . . . . . . . . . . . . Secondary . | . . . . . . . . . . . . . . . Self-Inflicted Damage 4 | . . . . . . . . . . 4 . . . . Shots . | . . . . . . . . . . . . . . . Rammed 1 | . . . . . . . . . . 1 . . . . Targets Rammed 1 | . . . . . . . . . . 1 . . . . Kicked . | . . . . . . . . . . . . . . . Crushed . | . . . . . . . . . . . . . . . Highest Temperature . | . . . . . . . . . . . . . . . Average Temperature . | . . . . . . . . . . . . . . . Received Heat Transfer 240 | . . . 6 . . . 63 . 36 45 72 9 9 . Siege Activations . | . . . . . . . . . . . . . . . Martial Activations . | . . . . . . . . . . . . . . . Shielding Activations . | . . . . . . . . . . . . . . . Robots Disrupted . | . . . . . . . . . . . . . . . Combat Hostiles . | . . . . . . . . . . . . . . . Robots Corrupted 5 | . . . . . . . 5 . . . . . . . Combat Hostiles 1 | . . . . . . . 1 . . . . . . . Parts Fried 5 | . . . . . . . 5 . . . . . . . Impact Corruptions 12 | . . . . . . . 12 . . . . . . . Robots Melted . | . . . . . . . . . . . . . . . Combat Hostiles . | . . . . . . . . . . . . . . . Parts Melted . | . . . . . . . . . . . . . . . Heat Transferred . | . . . . . . . . . . . . . . . Parts Sabotaged . | . . . . . . . . . . . . . . . Parts Stolen . | . . . . . . . . . . . . . . . Parts Stripped . | . . . . . . . . . . . . . . . Power Chain Reactions . | . . . . . . . . . . . . . . . Alert | -11 -10 -10 -9 -9 -9 -8 -8 -7 -7 -7 -6 -6 -6 -6 ------- Run | Yrd Mat Min Mat Min Exi Min Mat Fac Low Low Fac Low Low Dat Maximum Alert Level . | . . . . . . . . . . . . . . . Low Security (%) 100 | 100 100 100 100 100 . 100 100 100 . . 100 . . . Level 1 . | . . . . . . . . . . . . . . . Level 2 . | . . . . . . . . . . . . . . . Level 3 . | . . . . . . . . . . . . . . . Level 4 . | . . . . . . . . . . . . . . . Level 5 . | . . . . . . . . . . . . . . . High Security . | . . . . . . . . . . . . . . . Max Security . | . . . . . . . . . . . . . . . Peak Influence 120 | . 120 46 60 23 . . 92 33 . . 72 . . . Initial 46 | . . 46 1 23 . . . 33 . . . . . . Average 21 | . 18 27 13 9 . . 19 21 . . 34 . . . Influence Increases 729 | . 124 . 85 1 . . 192 . 135 . 132 . 60 . Destroy 0b10 Robot/C 220 | . 60 . . . . . 60 . 100 . . . . . Destroy 0b10 Robot/NC 35 | . . . . . . . 35 . . . . . . . Destroy Leader 34 | . 10 . . . . . 4 . 20 . . . . . Successful Hack 57 | . 11 . 23 . . . 11 . . . 12 . . . Disable Machine 30 | . 30 . . . . . . . . . . . . . Destroy Structure 23 | . 13 . 2 1 . . 7 . . . . . . . Partial Spotted 15 | . . . . . . . . . . . 15 . . . Lose Combat Pursuer 315 | . . . 60 . . . 75 . 15 . 105 . 60 . Influence Decreases 729 | . 4 114 31 61 . . 118 71 112 26 60 57 25 50 Entered New Map 246 | . . 74 5 37 . . . 41 2 6 . 27 4 50 Time Decay 453 | . 4 40 26 24 . . 98 30 100 20 60 30 21 . Lost Part 30 | . . . . . . . 20 . 10 . . . . . Squads Dispatched 10 | . 2 . 2 . . . 4 . . . 2 . . . Investigation 6 | . 1 . 1 . . . 2 . . . 2 . . . Extermination . | . . . . . . . . . . . . . . . Reinforcement 4 | . 1 . 1 . . . 2 . . . . . . . Assault . | . . . . . . . . . . . . . . . Garrison . | . . . . . . . . . . . . . . . Intercept . | . . . . . . . . . . . . . . . Searches Triggered . | . . . . . . . . . . . . . . . Construction Impeded . | . . . . . . . . . . . . . . . Haulers Reinforced . | . . . . . . . . . . . . . . . Active Scanning Responses . | . . . . . . . . . . . . . . . Cargo Convoy Interrupts . | . . . . . . . . . . . . . . . Stealth | -11 -10 -10 -9 -9 -9 -8 -8 -7 -7 -7 -6 -6 -6 -6 --------- Run | Yrd Mat Min Mat Min Exi Min Mat Fac Low Low Fac Low Low Dat Distress Signals 1 | . . . . . . . 1 . . . . . . . Communications Jammed . | . . . . . . . . . . . . . . . Distress Signals . | . . . . . . . . . . . . . . . Times Spotted 71 | . 5 . 7 3 . . 20 . 6 3 14 5 4 4 Peak Tracking Total 12 | . 6 . 8 3 . . 12 . 4 4 6 4 4 4 Tactical Retreats 11 | . . . 1 . . . 3 . 1 1 4 . 1 . Traps | -11 -10 -10 -9 -9 -9 -8 -8 -7 -7 -7 -6 -6 -6 -6 ------- Run | Yrd Mat Min Mat Min Exi Min Mat Fac Low Low Fac Low Low Dat Traps Triggered 2 | . 1 . . . . . . . . . 1 . . . Indirectly . | . . . . . . . . . . . . . . . Trap Hack Attempts . | . . . . . . . . . . . . . . . Triggered . | . . . . . . . . . . . . . . . Disarmed . | . . . . . . . . . . . . . . . Reprogrammed . | . . . . . . . . . . . . . . . Reused . | . . . . . . . . . . . . . . . Traps Extracted . | . . . . . . . . . . . . . . . Installed . | . . . . . . . . . . . . . . . Triggered . | . . . . . . . . . . . . . . . Objects Rigged 3 | . 3 . . . . . . . . . . . . . Exploded 1 | . 1 . . . . . . . . . . . . . Machines | -11 -10 -10 -9 -9 -9 -8 -8 -7 -7 -7 -6 -6 -6 -6 ---------- Run | Yrd Mat Min Mat Min Exi Min Mat Fac Low Low Fac Low Low Dat Machines Disabled 3 | . 2 . . . . . . . . . . . . 1 Max in Single Turn 2 | . 2 . . . . . . . . . . . . 1 Machines Repaired . | . . . . . . . . . . . . . . . Machines Dismantled . | . . . . . . . . . . . . . . . Machines Sabotaged . | . . . . . . . . . . . . . . . Overloaded Fab Kills . | . . . . . . . . . . . . . . . Hacking | -11 -10 -10 -9 -9 -9 -8 -8 -7 -7 -7 -6 -6 -6 -6 --------- Run | Yrd Mat Min Mat Min Exi Min Mat Fac Low Low Fac Low Low Dat Machines Accessed 15 | . 3 . 3 . 1 . 2 . . . 2 . . 4 Terminals 9 | . 3 . 3 . . . 2 . . . 1 . . . Fabricators 1 | . . . . . . . . . . . 1 . . . Repair Stations . | . . . . . . . . . . . . . . . Recycling Units . | . . . . . . . . . . . . . . . Scanalyzers . | . . . . . . . . . . . . . . . Garrison Access . | . . . . . . . . . . . . . . . Total Hacks 68 | . 11 . 12 . 1 . 9 . . . 5 . . 30 Successful 47 | . 6 . 6 . 1 . 3 . . . 1 . . 30 Failed 21 | . 5 . 6 . . . 6 . . . 4 . . . Catastrophic 5 | . . . 2 . . . . . . . 3 . . . Database Lockouts . | . . . . . . . . . . . . . . . Manual 36 | . 11 . 12 . 1 . 9 . . . 3 . . . Terminals 35 | . 11 . 12 . . . 9 . . . 3 . . . Fabricators 2 | . . . . . . . . . . . 2 . . . Repair Stations . | . . . . . . . . . . . . . . . Recycling Units . | . . . . . . . . . . . . . . . Scanalyzers . | . . . . . . . . . . . . . . . Garrison Access . | . . . . . . . . . . . . . . . Terminal Hacks 34 | . 1 . 2 . 1 . . . . . . . . 30 Record 11 | . . . . . . . . . . . . . . 11 Part Schematic 11 | . . . . . . . . . . . . . . 11 Robot Schematic 5 | . . . . . . . . . . . . . . 5 Prototype ID Bank 3 | . . . . . . . . . . . . . . 3 Terminal Index 2 | . 1 . 1 . . . . . . . . . . . Hauler Manifests 1 | . . . 1 . . . . . . . . . . . Proto ID Catalog 1 | . . . . . 1 . . . . . . . . . Fabricator Hacks . | . . . . . . . . . . . . . . . Repair Station Hacks . | . . . . . . . . . . . . . . . Recycling Unit Hacks . | . . . . . . . . . . . . . . . Scanalyzer . | . . . . . . . . . . . . . . . Garrison Access Hacks . | . . . . . . . . . . . . . . . Unauthorized Hacks 13 | . 5 . 4 . . . 3 . . . 1 . . . Terminals 13 | . 5 . 4 . . . 3 . . . 1 . . . Botnet 9 | . 3 . 3 . . . 2 . . . 1 . . . Detonate 1 | . 1 . . . . . . . . . . . . . Disrupt 1 | . . . . . . . 1 . . . . . . . Operators 2 | . 1 . 1 . . . . . . . . . . . Fabricators . | . . . . . . . . . . . . . . . Repair Stations . | . . . . . . . . . . . . . . . Recycling Units . | . . . . . . . . . . . . . . . Scanalyzers . | . . . . . . . . . . . . . . . Garrison Access . | . . . . . . . . . . . . . . . Data Cores Recovered . | . . . . . . . . . . . . . . . Used . | . . . . . . . . . . . . . . . Hacking Detections 10 | . 3 . 3 . . . 2 . . . 2 . . . Full Trace Events 10 | . 3 . 3 . . . 2 . . . 2 . . . Feedback Events . | . . . . . . . . . . . . . . . Feedback Blocked . | . . . . . . . . . . . . . . . Robot Schematics Acquired 5 | . . . . . . . . . . . . . . 5 Robots Built . | . . . . . . . . . . . . . . . Authchips . | . . . . . . . . . . . . . . . Time . | . . . . . . . . . . . . . . . Total Robot Build Rating . | . . . . . . . . . . . . . . . Part Schematics Acquired 11 | . . . . . . . . . . . . . . 11 Parts Built . | . . . . . . . . . . . . . . . Authchips . | . . . . . . . . . . . . . . . Time . | . . . . . . . . . . . . . . . Total Part Build Rating . | . . . . . . . . . . . . . . . Part Studies Acquired . | . . . . . . . . . . . . . . . Parts Repaired . | . . . . . . . . . . . . . . . Time . | . . . . . . . . . . . . . . . Parts Recycled . | . . . . . . . . . . . . . . . Recycled Matter . | . . . . . . . . . . . . . . . Retrieved Matter . | . . . . . . . . . . . . . . . Retrieved Components . | . . . . . . . . . . . . . . . Parts Scanalyzed . | . . . . . . . . . . . . . . . Part Schematics Acquired . | . . . . . . . . . . . . . . . Parts Damaged . | . . . . . . . . . . . . . . . Bothacking | -11 -10 -10 -9 -9 -9 -8 -8 -7 -7 -7 -6 -6 -6 -6 ------------ Run | Yrd Mat Min Mat Min Exi Min Mat Fac Low Low Fac Low Low Dat Used RIF Installer . | . . . . . . . . . . . . . . . Robots Hacked 3 | . . . . . . . . . 1 . . . 1 1 Non-combat 1 | . . . . . . . . . . . . . 1 . Combat 2 | . . . . . . . . . 1 . . . . 1 Robot Hacks Applied 3 | . . . . . . . . . 1 . . . 1 1 parse_system 3 | . . . . . . . . . 1 . . . 1 1 Relay Couplers Released . | . . . . . . . . . . . . . . . Fabnet Peak Effective % . | . . . . . . . . . . . . . . . Robots Rewired . | . . . . . . . . . . . . . . . Allies Hacked . | . . . . . . . . . . . . . . . Hacks Repelled . | . . . . . . . . . . . . . . . Allies | -11 -10 -10 -9 -9 -9 -8 -8 -7 -7 -7 -6 -6 -6 -6 -------- Run | Yrd Mat Min Mat Min Exi Min Mat Fac Low Low Fac Low Low Dat Total Allies 1 | . . . . . . . . . 1 . . . . . Largest Group 1 | . . . . . . . . . 1 . . . . . Highest-Rated Group 146 | . . . . . . . . . 146 . . . . . Highest-Rated Ally 146 | . . . . . . . . . 146 . . . . . Total Orders . | . . . . . . . . . . . . . . . Ally Attacks . | . . . . . . . . . . . . . . . Total Damage . | . . . . . . . . . . . . . . . Kills . | . . . . . . . . . . . . . . . Allies Corrupted . | . . . . . . . . . . . . . . . Allies Melted . | . . . . . . . . . . . . . . . Intel | -11 -10 -10 -9 -9 -9 -8 -8 -7 -7 -7 -6 -6 -6 -6 ------- Run | Yrd Mat Min Mat Min Exi Min Mat Fac Low Low Fac Low Low Dat Active Infowar (turns) 1460 | . . . 88 79 114 20 329 62 219 162 195 63 65 64 Optics 1460 | . . . 88 79 114 20 329 62 219 162 195 63 65 64 Terrain 182 | . . . . . . . 182 . . . . . . . Structural 123 | . . . . . . . 123 . . . . . . . Seismic 267 | . . . . . . . . . . . 85 63 65 54 Robot Analysis Total . | . . . . . . . . . . . . . . . Derelict Logs Recovered 5 | . . 1 . . . . . . 1 2 . . 1 . Drone Launches . | . . . . . . . . . . . . . . . Drone Recoveries . | . . . . . . . . . . . . . . . Exploration | -11 -10 -10 -9 -9 -9 -8 -8 -7 -7 -7 -6 -6 -6 -6 ------------- Run | Yrd Mat Min Mat Min Exi Min Mat Fac Low Low Fac Low Low Dat Turns Passed 1595 | 9 31 91 92 79 114 20 329 62 219 162 195 63 65 64 Spaces Moved 2672 | 18 59 181 159 141 213 40 311 116 332 285 328 172 167 150 Core 1821 | 18 59 181 159 141 213 40 311 116 147 115 306 . . 15 Treads . | . . . . . . . . . . . . . . . Legs . | . . . . . . . . . . . . . . . Wheels . | . . . . . . . . . . . . . . . Hover 355 | . . . . . . . . . 185 170 . . . . Flight 496 | . . . . . . . . . . . 22 172 167 135 Fastest Speed 37 | 50 50 50 50 50 50 50 50 50 50 50 37 37 37 37 Average Speed 48 | 50 50 50 50 50 50 50 50 50 55 55 49 37 37 38 Slowest Speed 60 | 50 50 50 50 50 50 50 50 50 60 60 50 37 37 50 Overloaded Moves . | . . . . . . . . . . . . . . . Propulsion Burnouts . | . . . . . . . . . . . . . . . Robots Hopped 1 | . . . . . . . . . . . . 1 . . Potential Cave-ins . | . . . . . . . . . . . . . . . Cave-ins Triggered . | . . . . . . . . . . . . . . . Time Travels 1 | . . . . . . . 1 . . . . . . . Exploration Rate (%) 35 | 3 21 57 20 39 64 12 33 4 52 55 14 42 36 82 Regions Visited 14 Branch Regions 9 Pre-discovered Areas 2 | . . . . . . . . . . 1 . . . 1 Known Exits Taken 9 | . . . . 1 1 1 1 1 1 1 1 . 1 . Unknown Exits Taken 5 | 1 1 1 1 . . . . . . . . 1 . . Scrap Searched 5 | . . 1 . . . . . . 2 1 . . 1 . Spaces Dug 9 | . . . 2 . . . 7 . . . . . . . Terrain Destroyed 32 | . 22 . 2 1 . . 7 . . . . . . . Melee 7 | . . . . . . . 7 . . . . . . . Projectile 3 | . . . 2 1 . . . . . . . . . . AOE 22 | . 22 . . . . . . . . . . . . . Terrain Rammed . | . . . . . . . . . . . . . . . Walls Destroyed . | . . . . . . . . . . . . . . . Machines Disabled . | . . . . . . . . . . . . . . . Actions | -11 -10 -10 -9 -9 -9 -8 -8 -7 -7 -7 -6 -6 -6 -6 --------- Run | Yrd Mat Min Mat Min Exi Min Mat Fac Low Low Fac Low Low Dat Total 2883 | 17 59 180 164 145 220 39 449 119 348 286 361 170 170 156 Wait 134 | . . . . . . . 109 . . . 25 . . . Move 2657 | 17 58 180 158 140 212 39 310 115 331 284 327 170 166 150 Hop . | . . . . . . . . . . . . . . . Pick Up 14 | . . . 3 2 4 . 1 2 . . 1 . 1 . Fast Attach 14 | . 1 . 1 1 . . 2 1 3 1 4 . . . Attach 7 | . . . . . 2 . 1 . 1 . . . 1 2 Detach 5 | . . . . . . . 1 . 1 . . . 1 2 Swap . | . . . . . . . . . . . . . . . Drop 10 | . . . . 1 2 . 2 1 . . 4 . . . Fire 3 | . . . 2 1 . . . . . . . . . . Melee 38 | . . . . . . . 23 . 12 . . . 1 2 Ram 1 | . . . . . . . . . . 1 . . . . Kick . | . . . . . . . . . . . . . . . Crush . | . . . . . . . . . . . . . . . Escape Stasis . | . . . . . . . . . . . . . . . Rewire . | . . . . . . . . . . . . . . . Trap . | . . . . . . . . . . . . . . . Miscellaneous . | . . . . . . . . . . . . . . . Route ------- -11/Scrapyard -10/Materials -10/Mines -9/Materials -9/Mines (discovered 2 exits: *Mat / *Exi) -9/Exiles (discovered 2 exits: *Min x2) -8/Mines -8/Materials -7/Factory -7/Lower Caves -7/Lower Caves -6/Factory (discovered 3 exits: Fac x2 / *Low) -6/Lower Caves -6/Lower Caves -6/Data Miner (discovered 1 exit: *Pro) History --------- Turn | Location | Event 3 | -11/Scrapyard | Discovered new exit (range 15) 10 | -11/Scrapyard | Entered Materials 35 | -10/Materials | Discovered new exit (range 8) 41 | -10/Materials | Entered Mines 124 | -10/Mines | Discovered new exit (range 15) 125 | -10/Mines | Learned Materials stockpile data 132 | -10/Mines | Entered Materials 132 | -9/Materials | Evolved 2 slots: Utility x2 220 | -9/Materials | Discovered new exit (range 10) 224 | -9/Materials | Entered Mines 290 | -9/Mines | Discovered new exit (range 5) 300 | -9/Mines | Build established: Mutant 300 | -9/Mines | Deemed a non-threat by the Exiles lab entrance 301 | -9/Mines | Discovered new exit (range 5) 302 | -9/Mines | Identified exit to Exiles 303 | -9/Mines | Entered Exiles 310 | -9/Exiles | Discovered new exit (range 18) 322 | -9/Exiles | Met 8R-AWN 329 | -9/Exiles | Met EX-HEX 345 | -9/Exiles | Met EX-BIN 351 | -9/Exiles | Aligned with FarCom system 351 | -9/Exiles | Given EX-Vault access code 363 | -9/Exiles | Opened EX-Vault 369 | -9/Exiles | Found Chronowheel 381 | -9/Exiles | Warned to stay clear of 0b10 Research branches 393 | -9/Exiles | Met EX-DEC 413 | -9/Exiles | Discovered new exit (range 10) 416 | -9/Exiles | Identified exit to Mines 417 | -9/Exiles | Left Exiles lab with Chronowheel 417 | -9/Exiles | Entered Mines 429 | -8/Mines | Discovered new exit (range 9) 434 | -8/Mines | Identified exit to Materials 437 | -8/Mines | Entered Materials 437 | -8/Materials | Evolved 2 slots: Utility x2 744 | -8/Materials | Build established: Scout 762 | -8/Materials | Core integrity fell below 50% 763 | -8/Materials | Discovered new exit (range 6) 764 | -8/Materials | Activated Chronowheel 764 | -8/Materials | Spacetime reconverged on an earlier point 765 | -8/Materials | Identified exit to Factory 766 | -8/Materials | Entered Factory 766 | -7/Factory | Evolved 2 slots: Utility x2 783 | -7/Factory | Discovered new exit (range 19) 792 | -7/Factory | Identified exit to Lower Caves 828 | -7/Factory | Entered Lower Caves 853 | -7/Lower Caves | Core integrity fell below 50% 921 | -7/Lower Caves | Spotted B-75 Beast 927 | -7/Lower Caves | Learned 8 Factory zone layouts 975 | -7/Lower Caves | Core integrity fell below 20% 1043 | -7/Lower Caves | Discovered new exit (range 7) 1046 | -7/Lower Caves | Identified exit to Lower Caves 1047 | -7/Lower Caves | Entered another Lower Caves area 1062 | -7/Lower Caves | Build established: Mutant 1092 | -7/Lower Caves | Spotted B-75 Beast 1117 | -7/Lower Caves | Learned location of Zion (-7) 1117 | -7/Lower Caves | Learned 8 Factory zone layouts 1150 | -7/Lower Caves | Ambushed by wild Derelicts 1206 | -7/Lower Caves | Discovered new exit (range 6) 1209 | -7/Lower Caves | Identified exit to Factory 1209 | -7/Lower Caves | Entered Factory 1209 | -6/Factory | Evolved 2 slots: Utility x2 1210 | -6/Factory | Identified exit to Factory 1403 | -6/Factory | Discovered new exit (range 3) 1404 | -6/Factory | Identified exit to Lower Caves 1404 | -6/Factory | Entered Lower Caves 1464 | -6/Lower Caves | Discovered new exit (range 11) 1467 | -6/Lower Caves | Entered another Lower Caves area 1473 | -6/Lower Caves | Encountered a Warlord checkpoint 1531 | -6/Lower Caves | Discovered new exit (range 6) 1532 | -6/Lower Caves | Identified exit to Data Miner 1532 | -6/Lower Caves | Spotted B-75 Beast 1532 | -6/Lower Caves | Entered Data Miner 1532 | -6/Data Miner | Discovered new exit (range 6) 1535 | -6/Data Miner | Identified exit to Proximity Caves 1539 | -6/Data Miner | Met Data Miner 1549 | -6/Data Miner | Learned location of Section 7 (-3) 1549 | -6/Data Miner | Acquired the access code to Warlord's prototype stash 1556 | -6/Data Miner | Received God Mode back door access code from Data Miner 1580 | -6/Data Miner | Data Conduit disabled 1590 | -6/Data Miner | Core integrity fell below 50% 1594 | -6/Data Miner | Core integrity fell below 20% 1596 | -6/Data Miner | Destroyed by Enhanced Grunt with Neutron Cannon Last Messages --------------- and enter \\4WRC to gain control via the back door I've installed. Now off with you. 01560_ Sneak attack on Data Miner. 01560_ Jacked Data Miner... >>parse_system Reading system data... New IDs: System Mapper Deep Network Scanner Ghost Barrier Quantum Router 01580_ Sneak attack on Data Miner. 01580_ Data Miner disappears through a trap door. 01586_ Seismic Detector destroyed. 01587_ Chain reaction triggered in Antimatter Reactor. 01589_ Nuclear Pulse Thruster destroyed. 01594_ Armor Integrity Analyzer destroyed. Map ----- +----------------------------------------------------+ | | | | | | | | | | | | | | | | | | | | | | | | | | | | | | | | | | | | | ??????????????????????????????????????? | | ??????????????????????????????????????? | | ??????????????????????????????????????? | | ??????????????????????????????????????? | | ?????????????#######??????####????????? | | ##########??##""#""####?### #????????? | | """""""""####"" " " # ### #????????? | | "" """"""""" " " # ## @> ##????????? | | "" ######???? | | g g #???? | | #???? | | #???? | | ##???? | | """"""""""""""""#####????? | | """"###############????????? | | """""###??????????????????????? | | "" "#####????????????????????????? | | #"## "#????????????????????????????? | | #"### "#????????????????????????????? | | #"### "#????????????????????????????? | | #"## "#????????????????????????????? | | #"## "#????????????????????????????? | | #"# "#????????????????????????????? | | ??### "#????????????????????????????? | | ????# "##???????????????????????????? | | ???## ""#???????????????????????????? | | #"## ""#???????????????????????????? | | #"#"X ""#???????????????????????????? | | """" "#####???????????????????????? | | """" X"""""#???????????????????????? | | #"#"X "##"##???????????????????????? | | #"## X""""#????????????????????????? | +----------------------------------------------------+ Best States ------------- Heat Dissipation 37 Energy Generation 5 Energy Capacity 100 Matter Stores 300 Matter Capacity 300 Sight Range 20 Terrain Scan Range 16 Terrain Scan Density 10 Evasion (%) 62 Target Analysis 5 Armor Integrity Analysis 30 Offensive Hacking 10 Item Schematics ----------------- Combat Drone Bay | -6/Data Miner | Free Lgt. Regenerative Plating | -6/Data Miner | Free Enh. Flexi-carbon Leg | -6/Data Miner | Free Imp. Matter Compressor | -6/Data Miner | Free Hvy. Gatling Laser | -6/Data Miner | Free Field Propulsion Array | -6/Data Miner | Free Adv. Power Amplifier | -6/Data Miner | Free Dispersion Rifle | -6/Data Miner | Free Adv. Reaction Control System | -6/Data Miner | Free Biometal Medium Treads | -6/Data Miner | Free Com. HERF Cannon | -6/Data Miner | Free Robot Schematics ------------------ Y-54 Guardian | -6/Data Miner | Free L-41 Fighter | -6/Data Miner | Free A-15 Conveyor | -6/Data Miner | Free X-62 Marksman | -6/Data Miner | Free H-66 Slayer | -6/Data Miner | Free Fabricated ------------ Nothing Repaired ---------- Nothing Studied --------- None Alien Tech Used ----------------- None Achievements -------------- Spacetime Is Relative Challenges ------------ None Game ------ Seed RiotBladeBasin Manual? 0 Play Time 00:22:51 Cumulative 19.4 hours Start 2025.10.31 @ 01:38:19 End 2025.10.31 @ 02:02:00 Sessions 1 Manual Loads 0 Difficulty Rogue Special Mode None Game No. 32 Rogue 32 Adventurer 0 Explorer 0 Win Type - Total 2 Types 2/0/0/0/0/0/0/0/0/0 Lore% 34 Gallery% 25 Achievement% 24 Wizard Run 0 Options --------- Layout 1 ASCII 0 Keyboard 1 Movement Arrows Keybinds 0 Fullscreen 1 Font 16/SmallcapsGlow Map View 50x54 Zoom Use 0% Tactical HUD 1 Map Filters NONE Filters NONE Steam 1 RUN: ff2f762f-d684-441b-81bf-aeb45f163c86